Cogmind - Beta 11 *** ADVENTURER MODE // 2022.03.19 @ 23:39:18 Player: shisihs Result: Destroyed by H-66 Slayer with Gauss Rifle Performance ------------- Evolutions (4) 2000 Regions Visited (7) 1400 Robots Destroyed (39) 195 Value Destroyed (1342) 1342 Prototype IDs (4) 80 Alien Tech Used (0) 0 Bonus (0) 0 TOTAL SCORE: 5017 Bonus ------- None Cogmind --------- Core Integrity 0/850 Matter 127/300 Energy 100/100 System Corruption 7% Temperature Cool (0) Movement Core (700) Ox13 Location -6/Factory Parts ------- > --- POWER (1) -------- (None) > --- PROPULSION (4) --- (None) > --- UTILITY (8) ------ High-capacity Storage Unit Improved Signal Interpreter Targeting Computer > --- WEAPON (2) ------- (None) > --- INVENTORY (20) --- Improved Hover Unit Improved Cesium-ion Thruster Nuclear Pulse Thruster Advanced Heat Sink Large Storage Unit High-capacity Storage Unit Faulty Advanced Beam Rifle Ion Cannon Heavy Assault Rifle Impact Mace Peak State ------------ > --- POWER ------------ Light Nuclear Core > --- PROPULSION ------- Titanium Leg Titanium Leg Titanium Leg Titanium Leg > --- UTILITY ---------- High-capacity Storage Unit Compact Matter Pod Gravity Neutralizer Improved Signal Interpreter Targeting Computer Advanced Targeting Computer Hardlight Generator Makeshift System Shield > --- WEAPON ----------- Advanced Beam Rifle Heavy Assault Rifle > --- INVENTORY -------- Light Nuclear Core Aluminum Leg Carbon-fiber Leg Carbon-fiber Leg Carbon-fiber Leg Hover Unit Improved Hover Unit Improved Cesium-ion Thruster Improved Cesium-ion Thruster Advanced Heat Sink Large Storage Unit High-capacity Storage Unit Advanced Beam Rifle Improved EM Pulse Cannon Ion Cannon Heavy Assault Rifle Impact Mace [Rating: 50] Favorites ----------- Power Light Ion Engine Engine Light Ion Engine Power Core Nuclear Core Propulsion Aluminum Leg Treads Light Treads Leg Aluminum Leg Wheel Wheel Hover Unit Hover Unit Flight Unit Xenon Bombardment Thruster Utility High-capacity Storage Unit Device Structural Scanner Storage High-capacity Storage Unit Processor Improved Signal Interpreter Hackware Makeshift System Shield Weapon Medium Laser Energy Gun Medium Laser Energy Cannon Improved EM Pulse Cannon Ballistic Gun Shotgun Ballistic Cannon Advanced Assault Cannon Launcher Grenade Launcher Special Weapon Mining Laser Impact Weapon Impact Mace Slashing Weapon Axe Special Melee Weapon Datajack Build | -11 -10 -10 -10 -9 -8 -7 -6 ------- Run | Scr Mat Min Exi Min Mat Fac Fac Slots Evolved 8 | . . . . . 4 2 2 Power . | . . . . . . . . Propulsion 2 | . . . . . 1 . 1 Utility 6 | . . . . . 3 2 1 Weapon . | . . . . . . . . Parts Attached 93 | 6 3 2 3 5 29 24 21 Power 8 | 1 . . 1 1 2 1 2 Engine 5 | 1 . . 1 1 1 1 . Core 3 | . . . . . 1 . 2 Reactor . | . . . . . . . . Propulsion 42 | 2 . . . 2 13 15 10 Treads 4 | . . . . 2 2 . . Leg 25 | 2 . . . . 6 9 8 Wheel 1 | . . . . . 1 . . Hover 5 | . . . . . 2 2 1 Flight 7 | . . . . . 2 4 1 Utility 21 | 2 2 1 1 . 6 4 5 Device 10 | 1 1 . . . 3 3 2 Storage 6 | 1 1 . . . 1 1 2 Processor 4 | . . 1 . . 2 . 1 Hackware 1 | . . . 1 . . . . Protection . | . . . . . . . . Artifact . | . . . . . . . . Weapon 22 | 1 1 1 1 2 8 4 4 Energy Gun 5 | 1 1 . 1 1 . . 1 Energy Cannon 1 | . . . . . . . 1 Ballistic Gun 6 | . . . . . 3 1 2 Ballistic Cannon 1 | . . . . . . 1 . Launcher 2 | . . . . . 2 . . Special Weapon 1 | . . . . 1 . . . Impact Weapon 1 | . . . . . . 1 . Slashing Weapon 3 | . . . . . 2 1 . Piercing Weapon . | . . . . . . . . Special Melee Weapon 2 | . . 1 . . 1 . . Unidentified Prototypes 4 | . . . . . . 1 3 Corrupted Parts 4 | . . . . . 3 . 1 System Corruption 12 | . . . . . 6 . 6 Parts Lost 48 | . . . . 5 12 8 23 Power 6 | . . . . 1 1 2 2 Propulsion 21 | . . . . 2 5 3 11 Utility 9 | . . . . . 1 3 5 Weapon 12 | . . . . 2 5 . 5 Highest Loss Streak 19 | . . . . 5 10 4 19 To Critical Strikes . | . . . . . . . . Average Slot Usage (%) 94 | . 97 100 100 97 92 90 82 Engine 8 | . 14 14 14 13 6 2 . Core 1 | . . . . . 1 4 5 Treads 2 | . . . . 16 6 . . Leg 21 | . 28 28 28 10 13 16 20 Flight 1 | . . . . . . 5 . Device 5 | . 14 2 . . 8 11 6 Storage 13 | . 14 14 14 14 11 14 14 Processor 9 | . . 11 3 . 13 15 19 Hackware 7 | . . . 10 14 9 7 5 Energy Gun 12 | . 25 16 24 18 . . 4 Ballistic Gun 3 | . . . . . 11 4 1 Slashing Weapon 1 | . . . . . 2 4 . Special Melee Weapon 2 | . . 11 3 . . . . Naked Turns . | . . . . . . . . Heaviest Build 78 | 11 47 47 49 49 75 62 78 Greatest Support 68 | 20 20 20 20 40 40 51 68 Greatest Overweight (x) 15 | . 2 2 2 2 3 8 15 Average Overweight (x) 1 | . . 2 2 1 1 1 1 Largest Inventory Capacity 20 | 8 20 20 20 20 20 20 20 Average Capacity 19 | 7 15 20 20 20 20 20 20 Most Carried 20 | 8 12 13 15 15 20 20 20 Average Carried 15 | 3 8 12 14 13 17 19 16 Final Capacity 20 | 8 20 20 20 20 20 20 20 Final Carried 19 | 7 12 13 15 13 19 19 10 Class Distribution -------------------- 72% | Hacker-Mutant 25% | Mutant Dominant Class ---------------- Mutant | -10/Materials Mutant | -10/Mines Hacker-Mutant | -10/Exiles Hacker-Mutant | -9/Mines Hacker-Mutant | -8/Materials Hacker-Mutant | -7/Factory Hacker-Mutant | -6/Factory Resources | -11 -10 -10 -10 -9 -8 -7 -6 ----------- Run | Scr Mat Min Exi Min Mat Fac Fac Matter Collected 1020 | 128 127 90 . 68 351 105 151 Remotely . | . . . . . . . . Salvage Created 1522 | 65 139 92 . 3 832 132 259 Parts 71 | 5 8 3 . . 42 5 8 Haulers Intercepted . | . . . . . . . . Recyclers Shooed 8 | 2 2 . . 1 3 . . Parts Field Recycled . | . . . . . . . . Retrieved Matter . | . . . . . . . . Parts Self-Destructed . | . . . . . . . . Prevented . | . . . . . . . . Kills | -11 -10 -10 -10 -9 -8 -7 -6 ------- Run | Scr Mat Min Exi Min Mat Fac Fac Combat Hostiles Destroyed 28 | . 3 2 . 2 13 3 5 Melee 6 | . . . . . 5 1 . Guns 14 | . 3 1 . 2 3 1 4 Cannons 2 | . . . . . . 1 1 AOE 5 | . . . . . 5 . . Classes Destroyed 11 | 2 2 1 . 2 3 . 1 Builder 1 | . . . . . 1 . . Tunneler 2 | 1 . . . . 1 . . Recycler 5 | 1 1 . . . 3 . . Operator 1 | . . . . . 1 . . Watcher 3 | . 1 . . . 2 . . Swarmer 3 | . 3 . . . . . . Grunt 17 | . . 2 . . 10 1 4 Sentry 5 | . . . . . 3 2 . Demolisher 1 | . . . . 1 . . . Programmer 1 | . . . . . . . 1 Assembled 1 | . . . . 1 . . . Best Kill Streak 10 | 2 3 2 . 1 10 1 3 Combat Bots Only 4 | . 2 2 . 1 4 1 3 Max Kills in Single Turn 3 | 1 1 1 . 1 3 1 1 Gunslinging . | . . . . . . . . Exploded 1 | . . . . . 1 . . Melee 1 | . . . . . 1 1 . Uniques/NPCs Destroyed . | . . . . . . . . Combat | -11 -10 -10 -10 -9 -8 -7 -6 -------- Run | Scr Mat Min Exi Min Mat Fac Fac Damage Taken 5959 | . 46 68 . 528 1407 1223 2687 Core 1681 | . 12 21 . 108 265 417 858 Absorbed by Shields 148 | . . . . . . . 148 Core Remaining (%) 58 | 100 . . . 43 51 40 . Volleys Fired 103 | 8 11 8 . 7 29 11 29 Largest 2 | 1 2 1 . 2 2 1 2 Hottest 140 | 50 90 50 . 140 53 48 109 Shots Fired 161 | 8 22 8 . 10 53 11 49 Gun 135 | 8 22 8 . 8 40 8 41 Cannon 11 | . . . . . . 3 8 Launcher 13 | . . . . . 13 . . Special 2 | . . . . 2 . . . Kinetic 75 | . . . . . 40 11 24 Thermal 70 | 8 22 8 . 9 . . 23 Explosive 9 | . . . . . 9 . . Electromagnetic 7 | . . . . 1 4 . 2 Robot Hit Streak 22 | 2 13 7 . 8 19 14 22 Robot Miss Streak 4 | 4 3 1 . 1 2 1 2 Penetration Max . | . . . . . . . . Secondary Targets 1 | . . . . . . . 1 Max Gunslinging Chain 1 | . . . . . . . 1 Shots Hit Robots 145 | 3 15 7 . 7 58 12 43 Core Hits 88 | 3 7 3 . 6 45 7 17 Critical Kills . | . . . . . . . . Critical Parts Destroyed 2 | . . . . . . 1 1 Critical Strikes 11 | 1 3 1 . . . 2 4 Burn 8 | 1 3 1 . . . . 3 Destroy 2 | . . . . . . 1 1 Smash 1 | . . . . . . 1 . Melee Attacks 13 | . . . . . 12 1 . Impact 1 | . . . . . . 1 . Slashing 11 | . . . . . 11 . . Piercing . | . . . . . . . . Sneak Attacks 1 | . . . . . 1 . . Combat Hostiles . | . . . . . . . . Follow-up Attacks 1 | . . . . . 1 . . Damage Inflicted 3707 | 37 176 88 . 102 2072 281 951 Guns 1875 | 37 176 88 . 72 591 160 751 Cannons 279 | . . . . . . 79 200 Explosions 1034 | . . . . . 1034 . . Melee 488 | . . . . . 446 42 . Ramming 7 | . . . . 6 1 . . Kinetic 1264 | . . . . . 591 239 434 Thermal 852 | 37 176 88 . 96 . . 455 Explosive 879 | . . . . . 879 . . Electromagnetic 217 | . . . . . 155 . 62 Impact 42 | . . . . . . 42 . Slashing 446 | . . . . . 446 . . Piercing . | . . . . . . . . Highest Corruption 7 | . . . . . 6 2 7 Average Corruption 3 | . . . . . 5 1 2 Corruption Purged . | . . . . . . . . Corruption Blocked . | . . . . . . . . Effects 11 | . . . . . 3 1 7 Message Errors 3 | . . . . . 1 1 1 Heat Flow Errors 3 | . . . . . 1 . 2 Energy Discharges 2 | . . . . . . . 2 Data Loss (minor) 2 | . . . . . . . 2 Misfires 1 | . . . . . 1 . . Overload Shots . | . . . . . . . . Overflow Damage 109 | . . . . . 67 42 . Projectiles . | . . . . . . . . Explosions 11 | . . . . . 11 . . Melee 98 | . . . . . 56 42 . Knockbacks 3 | . . . . . . . 3 Impact . | . . . . . . . . Kinetic 2 | . . . . . . . 2 Secondary 1 | . . . . . . . 1 Self-Inflicted Damage 102 | . . . . . 102 . . Shots 11 | . . . . . 11 . . Rammed 3 | . . . . 3 . . . Targets Rammed 4 | . . . . 3 1 . . Kicked 1 | . . . . . 1 . . Crushed . | . . . . . . . . Highest Temperature 258 | 20 90 131 . 80 222 11 258 Average Temperature 62 | 9 34 71 . 37 39 5 107 Received Heat Transfer 2357 | . . 51 . . 972 279 1055 Siege Activations . | . . . . . . . . Robots Corrupted . | . . . . . . . . Combat Hostiles . | . . . . . . . . Parts Fried 3 | . . . . . 2 1 . Impact Corruptions 1 | . . . . . . 1 . Robots Melted 1 | . . 1 . . . . . Combat Hostiles 1 | . . 1 . . . . . Parts Melted 4 | . 2 2 . . . . . Heat Transferred 2458 | 185 693 333 . 248 . . 999 Parts Sabotaged . | . . . . . . . . Parts Stolen . | . . . . . . . . Parts Stripped . | . . . . . . . . Power Chain Reactions . | . . . . . . . . Missiles Intercepted . | . . . . . . . . Alert | -11 -10 -10 -10 -9 -8 -7 -6 ------- Run | Scr Mat Min Exi Min Mat Fac Fac Peak Influence 221 | 10 132 93 . 30 221 72 43 Initial 43 | . 5 43 . . . 37 3 Average 40 | 1 84 73 . 1 49 26 16 Maximum Alert Level 1 | . . . . . 1 . . Low Security (%) 98 | 100 100 100 . 100 95 100 100 Level 1 1 | . . . . . 4 . . Level 2 . | . . . . . . . . Level 3 . | . . . . . . . . Level 4 . | . . . . . . . . Level 5 . | . . . . . . . . High Security . | . . . . . . . . Max Security . | . . . . . . . . Squads Dispatched 6 | . . . . . 3 1 2 Investigation 2 | . . . . . 1 . 1 Extermination 2 | . . . . . . 1 1 Reinforcement 2 | . . . . . 2 . . Assault . | . . . . . . . . Garrison . | . . . . . . . . Intercept . | . . . . . . . . Searches Triggered . | . . . . . . . . Construction Impeded 1 | . . . . . 1 . . Haulers Reinforced . | . . . . . . . . Active Scanning Responses . | . . . . . . . . Cargo Convoy Interrupts . | . . . . . . . . Stealth | -11 -10 -10 -10 -9 -8 -7 -6 --------- Run | Scr Mat Min Exi Min Mat Fac Fac Distress Signals 3 | . . . . 1 2 . . Communications Jammed . | . . . . . . . . Distress Signals . | . . . . . . . . Times Spotted 47 | . 7 2 . 3 20 4 11 Peak Tracking Total 7 | . 4 2 . 2 7 3 4 Tactical Retreats 1 | . 1 . . . . . . Traps | -11 -10 -10 -10 -9 -8 -7 -6 ------- Run | Scr Mat Min Exi Min Mat Fac Fac Traps Triggered 1 | . . . . . 1 . . Indirectly . | . . . . . . . . Trap Hack Attempts . | . . . . . . . . Triggered . | . . . . . . . . Disarmed . | . . . . . . . . Reprogrammed . | . . . . . . . . Reused . | . . . . . . . . Traps Extracted . | . . . . . . . . Installed . | . . . . . . . . Triggered . | . . . . . . . . Machines | -11 -10 -10 -10 -9 -8 -7 -6 ---------- Run | Scr Mat Min Exi Min Mat Fac Fac Machines Disabled 1 | . . . . . 1 . . Max in Single Turn 1 | . . . . . 1 . . Machines Sabotaged . | . . . . . . . . Garrisons Compromised . | . . . . . . . . Overloaded Fab Kills . | . . . . . . . . Hacking | -11 -10 -10 -10 -9 -8 -7 -6 --------- Run | Scr Mat Min Exi Min Mat Fac Fac Machines Accessed 6 | . . . . . 5 . 1 Terminals 3 | . . . . . 3 . . Fabricators 1 | . . . . . . . 1 Repair Stations . | . . . . . . . . Recycling Units . | . . . . . . . . Scanalyzers 2 | . . . . . 2 . . Garrison Access . | . . . . . . . . Total Hacks 15 | . . . . . 11 . 4 Successful 11 | . . . . . 9 . 2 Failed 4 | . . . . . 2 . 2 Catastrophic . | . . . . . . . . Database Lockouts . | . . . . . . . . Manual 2 | . . . . . 2 . . Terminals 6 | . . . . . 6 . . Fabricators 4 | . . . . . . . 4 Repair Stations . | . . . . . . . . Recycling Units . | . . . . . . . . Scanalyzers 5 | . . . . . 5 . . Garrison Access . | . . . . . . . . Terminal Hacks 4 | . . . . . 4 . . Record 1 | . . . . . 1 . . Unreport Threat 1 | . . . . . 1 . . Dispatch Records 1 | . . . . . 1 . . Zone Layout 1 | . . . . . 1 . . Fabricator Hacks 2 | . . . . . . . 2 Load Schematic 1 | . . . . . . . 1 Build 1 | . . . . . . . 1 Repair Station Hacks . | . . . . . . . . Recycling Unit Hacks . | . . . . . . . . Scanalyzer 5 | . . . . . 5 . . Insert Component 3 | . . . . . 3 . . Analyze 2 | . . . . . 2 . . Garrison Access Hacks . | . . . . . . . . Unauthorized Hacks . | . . . . . . . . Terminals . | . . . . . . . . Fabricators . | . . . . . . . . Repair Stations . | . . . . . . . . Recycling Units . | . . . . . . . . Scanalyzers . | . . . . . . . . Garrison Access . | . . . . . . . . Data Cores Recovered . | . . . . . . . . Used . | . . . . . . . . Hacking Detections 4 | . . . . . 3 . 1 Full Trace Events 1 | . . . . . . . 1 Feedback Events . | . . . . . . . . Feedback Blocked . | . . . . . . . . Robot Schematics Acquired . | . . . . . . . . Robots Built . | . . . . . . . . Authchips . | . . . . . . . . Time . | . . . . . . . . Total Robot Build Rating . | . . . . . . . . Part Schematics Acquired 2 | . . . . . 2 . . Parts Built 2 | . . . . . . . 2 Authchips . | . . . . . . . . Time 36 | . . . . . . . 36 Total Part Build Rating 6 | . . . . . . . 6 Parts Repaired . | . . . . . . . . Time . | . . . . . . . . Parts Recycled . | . . . . . . . . Recycled Matter . | . . . . . . . . Retrieved Matter . | . . . . . . . . Retrieved Components . | . . . . . . . . Parts Scanalyzed 2 | . . . . . 2 . . Part Schematics Acquired 2 | . . . . . 2 . . Parts Damaged . | . . . . . . . . Bothacking | -11 -10 -10 -10 -9 -8 -7 -6 ------------ Run | Scr Mat Min Exi Min Mat Fac Fac Used RIF Installer . | . . . . . . . . Robots Hacked 1 | . . . . . 1 . . Non-combat . | . . . . . . . . Combat 1 | . . . . . 1 . . Robot Hacks Applied 1 | . . . . . 1 . . parse_system 1 | . . . . . 1 . . Relay Couplers Released . | . . . . . . . . Fabnet Peak Effective % . | . . . . . . . . Robots Rewired 3 | . . . 3 . . . . Allies Hacked . | . . . . . . . . Hacks Repelled . | . . . . . . . . Allies | -11 -10 -10 -10 -9 -8 -7 -6 -------- Run | Scr Mat Min Exi Min Mat Fac Fac Total Allies 3 | . . . 3 . . . . Largest Group 3 | . . . 3 3 . . . Highest-Rated Group 24 | . . . 24 24 . . . Highest-Rated Ally 8 | . . . 8 8 . . . Total Orders 3 | . . . 3 . . . . GUARD 3 | . . . 3 . . . . Ally Attacks . | . . . . . . . . Total Damage . | . . . . . . . . Kills . | . . . . . . . . Allies Corrupted . | . . . . . . . . Allies Melted . | . . . . . . . . Intel | -11 -10 -10 -10 -9 -8 -7 -6 ------- Run | Scr Mat Min Exi Min Mat Fac Fac Robot Analysis Total . | . . . . . . . . Derelict Logs Recovered . | . . . . . . . . Drone Launches . | . . . . . . . . Drone Recoveries . | . . . . . . . . Exploration | -11 -10 -10 -10 -9 -8 -7 -6 ------------- Run | Scr Mat Min Exi Min Mat Fac Fac Turns Passed 4749 | 100 309 433 1401 182 998 660 666 Spaces Moved 1664 | 57 140 152 522 58 314 269 152 Core 7 | 5 . . . . . . 2 Treads 154 | . . . . 35 119 . . Legs 1441 | 52 140 152 522 23 195 212 145 Wheels . | . . . . . . . . Hover 5 | . . . . . . . 5 Flight 57 | . . . . . . 57 . Fastest Speed 50 | 50 120 260 260 240 190 130 126 Average Speed 229 | 113 188 260 260 247 224 210 214 Slowest Speed 800 | 120 260 260 260 260 330 680 800 Overloaded Moves . | . . . . . . . . Propulsion Burnouts . | . . . . . . . . Robots Hopped . | . . . . . . . . Cave-ins Triggered . | . . . . . . . . Exploration Rate (%) 25 | 4 39 24 77 9 33 9 6 Regions Visited 7 Branch Regions 3 Pre-discovered Areas . | . . . . . . . . Known Exits Taken 2 | . . . . . 1 1 . Unknown Exits Taken 5 | 1 1 1 1 1 . . . Scrap Searched . | . . . . . . . . Spaces Dug 5 | . . . . . 5 . . Terrain Destroyed 44 | . . . . 1 43 . . Melee . | . . . . . . . . Projectile 1 | . . . . 1 . . . AOE 43 | . . . . . 43 . . Terrain Rammed . | . . . . . . . . Walls Destroyed . | . . . . . . . . Machines Disabled . | . . . . . . . . Actions | -11 -10 -10 -10 -9 -8 -7 -6 --------- Run | Scr Mat Min Exi Min Mat Fac Fac Total 2408 | 84 165 183 565 79 536 352 444 Wait 400 | 1 3 20 4 3 124 14 231 Move 1657 | 56 139 151 521 57 313 268 152 Hop . | . . . . . . . . Pick Up 80 | 13 7 1 3 3 24 19 10 Fast Attach 3 | . . . . . 1 2 . Attach 57 | 6 1 1 . 5 13 11 20 Detach 4 | . . 1 . . . 2 1 Swap 33 | . 2 1 3 . 15 11 1 Drop 20 | . 2 . . . 5 13 . Fire 103 | 8 11 8 . 7 29 11 29 Melee 12 | . . . . . 11 1 . Ram . | . . . . . . . . Kick 1 | . . . . . 1 . . Crush 3 | . . . . 3 . . . Escape Stasis . | . . . . . . . . Rewire 35 | . . . 34 1 . . . Trap . | . . . . . . . . Miscellaneous . | . . . . . . . . Route ------- -11/Scrapyard -10/Materials -10/Mines -10/Exiles (discovered 2 exits: [*Min x2]) -9/Mines -8/Materials -7/Factory -6/Factory History --------- Turn | Location | Event 3 | -11/Scrapyard | Discovered new exit (range 14) 101 | -11/Scrapyard | Entered Materials 312 | -10/Materials | Build established: Mutant 385 | -10/Materials | Discovered new exit (range 5) 410 | -10/Materials | Entered Mines 682 | -10/Mines | Found a hidden stash of uninstalled traps 833 | -10/Mines | Deemed a non-threat by the Exiles lab entrance 833 | -10/Mines | Discovered new exit (range 5) 843 | -10/Mines | Entered Exiles 843 | -10/Exiles | Found Exiles lab destroyed 903 | -10/Exiles | Discovered new exit (range 16) 1422 | -10/Exiles | Discovered new exit (range 10) 1446 | -10/Exiles | Build established: Hacker-Mutant 2244 | -10/Exiles | Entered Mines 2244 | -9/Mines | Accompanied by 3 allies 2279 | -9/Mines | Assembled infested the area 2332 | -9/Mines | Discovered new exit (range 8) 2348 | -9/Mines | Lost 5 parts (1p2n2w) 2393 | -9/Mines | Core integrity fell below 50% 2426 | -9/Mines | Entered Materials 2426 | -8/Materials | Evolved 4 slots: Propulsion x1, Utility x3 3279 | -8/Materials | Lost 10 parts (1p4n1u4w) 3401 | -8/Materials | Discovered new exit (range 10) 3422 | -8/Materials | Identified exit to Factory 3424 | -8/Materials | Entered Factory 3424 | -7/Factory | Evolved 2 slots: Utility x2 3964 | -7/Factory | Discovered new exit (range 16) 4017 | -7/Factory | Lost 3 parts (1n2u) 4028 | -7/Factory | Core integrity fell below 50% 4064 | -7/Factory | Identified exit to Factory 4084 | -7/Factory | Entered another Factory area 4084 | -6/Factory | Evolved 2 slots: Propulsion x1, Utility x1 4100 | -6/Factory | Lost 4 parts (1p2n1u) 4266 | -6/Factory | Lost 3 parts (1n2w) 4541 | -6/Factory | Fabricated Carbon-fiber Leg (x2) 4665 | -6/Factory | Core integrity fell below 50% 4744 | -6/Factory | Core integrity fell below 20% 4750 | -6/Factory | Destroyed by H-66 Slayer with Gauss Rifle Last Messages --------------- 04733_ Slug penetrates Wall. 04735_ Penetrated by Slug. 04736_ U-05 Engineer destroyed. 04737_ K-01 Serf collects debris. 04737_ Slug penetrates Wall. 04738_ Penetrated by Slug. 04738_ Carbon-fiber Leg destroyed. 04741_ K-01 Serf collects debris. 04741_ Penetrated by Slug. 04741_ R-10 Processor collects Lgt. Ion Engine. 04743_ Penetrated by Slug. 04743_ Critical hit (Burn: +37). 04744_ K-01 Serf collects debris. 04744_ Penetrated by Slug. 04744_ Com. Matter Pod destroyed. 04745_ R-10 Processor collects Welding Torch. 04746_ Penetrated by Slug. 04747_ K-01 Serf collects debris. 04748_ R-10 Processor collects Structural Scanner. 04750_ Penetrated by Slug. Map ----- +----------------------------------------------------+ | ?????????????????????????????????????????????????? | | ?????????????????????????????????????????????????? | | ?????????????????????????????????????????????????? | | ?????????????????????????????????????????????????? | | ?????????????????????????????????????????????????? | | ?????????????????????????????????????????????????? | | ?????????????????????????????????????????????????? | | ?????????????????????????????????????????????????? | | ?????????????????????????????????????????????????? | | ?????????????????????????????????????????????????? | | ?????????????????????????????????????????????????? | | ?????????????????????????????????????????????????? | | ?????????????????????????????????????????????????? | | ?????????????????????????????????????????????????? | | ?????????????????????????????????????????????????? | | ?????????????????????????????????????????????????? | | ?????????????????????????????????????????????????? | | ??????????????????????######?????????????????????? | | ?????????????????????## ^ ?????????????????????? | | ????????????????????? # ??????????????????????? | | ??????????????????????+ ??????????????????????? | | ??????????????????????# R#??????????????????????? | | ??????????????????????# #??????????????????????? | | ??????????????????????# h#??????????????????????? | | ??????????????????????# R #??????????????????????? | | ??????????????????????#h%@#??????????????????????? | | ??????????????????????#!=!#??????????????????????? | | ?????????????????######%k #??????????????????????? | | ?????????????????# ! #??????????????????????? | | ?????????????????# #??????????????????????? | | ?????????????????# #??????????????????????? | | ################?# ##;###??????????????????????? | | #? ?#gh # ?????????????????????????? | | "" #? """ # # ?????????????????????????? | | ## """ # # ?????????????????????????? | | "" ## """ + # ?????????????????????????? | | ## "" # # ?????????????????????????? | | "" ## "" # #! ?????????????????????????? | | "F"" ## ?# # ?????????????????????????? | | """" ## ?# # ??????????????????????????? | | ## ??# # ??????????????????????????? | | ################## # ??????????????????????????? | | #!??????????????????????????? | | % ^ #???????????????????????????? | | #???????????????????????????? | | #???????????????????????????? | | ######???????????????????????????? | | ########### ???????????????????????????????? | | #?????# ?????????????????????????????? | | #?????# ????????????????????????????? | +----------------------------------------------------+ Best States ------------- Heat Dissipation 37 Energy Generation 16 Energy Capacity 290 Matter Stores 300 Matter Capacity 450 Sight Range 18 Terrain Scan Density 10 Resistance: KI 20 Resistance: TH 20 Resistance: EX 20 Resistance: EM 20 Resistance: I 20 Resistance: S 20 Resistance: P 20 Evasion (%) 55 Targeting Accuracy 13 Recoil Reduction 2 Offensive Hacking 10 Defensive Hacking 11 Item Schematics ----------------- Carbon-fiber Leg | -8/Materials | Scanalyzed Lrg. Storage Unit | -8/Materials | Scanalyzed Robot Schematics ------------------ None Fabricated ------------ Carbon-fiber Leg | x2 | -6/Factory Alien Tech Used ----------------- None Achievements -------------- A New Friend Challenges ------------ None Game ------ Seed HardcellTrackerFlakker Manual? 0 Play Time 00:41:20 Cumulative 19.9 hours Start 2022.03.19 @ 22:58:29 End 2022.03.19 @ 23:39:18 Sessions 1 Manual Loads 0 Difficulty Adventurer Special Mode None Game No. 41 Rogue 19 Adventurer 22 Explorer 0 Win Type - Total 0 Types 0/0/0/0/0/0/0/0/0 Lore% 11 Gallery% 24 Achievement% 20 Wizard Run 0 Options --------- ASCII 0 Keyboard 0 Movement Mouse Keybinds 0 Fullscreen 1 Font 18/SmallcapsGlow Map View 76x50 Tactical HUD 1 Map Filters NONE Filters NONE Steam 1 RUN: a55fac6a-79db-40fb-9829-1808ae3596a6